bitfinex-derivatives/quotes_SOLF0:USTF0_20250817
["timestamp","ask_amount","ask_price","bid_price","bid_amount"]
[1755390824931,3.96996654,188.45,188.41,1.27021557]
[1755390825234,1.27021557,188.49,188.41,1.27021557]
[1755390825428,8.59661548,188.48,188.41,1.27021557]
[1755390825639,9.86683105,188.47,188.41,1.27021557]
[1755390825835,3.97011042,188.46,188.41,1.27021557]
[1755390826035,3.97011042,188.45,188.41,1.27021557]
[1755390826335,1.27021557,188.47,188.41,1.27021557]
[1755390826537,3.96861285,188.46,188.41,1.27021557]
[1755390826736,3.96861285,188.45,188.41,1.27021557]
[1755390826936,1.27021557,188.47,188.41,1.27021557]
[1755390827236,3.96902935,188.46,188.41,1.27021557]
[1755390827438,3.96902935,188.45,188.41,1.27021557]
[1755390827639,1.27021557,188.47,188.41,1.27021557]
[1755390827837,3.97098328,188.46,188.41,1.27021557]
[1755390828135,3.97098328,188.45,188.41,1.27021557]
[1755390828338,1.27021557,188.47,188.41,1.27021557]
[1755390828542,3.97113399,188.46,188.41,1.27021557]
[1755390828735,3.97113399,188.45,188.41,1.27021557]
[1755390828944,1.27021557,188.48,188.41,1.27021557]
[1755390829143,1.27021557,188.46,188.39,1.27021557]
[1755390829336,3.97082695,188.45,188.39,1.27021557]
[1755390829551,3.97082695,188.44,188.39,1.27021557]
[1755390829734,1.27021557,188.46,188.36,47.3053]
[1755390830037,1.27021557,188.46,188.39,1.27021557]
[1755390830038,3.97099695,188.45,188.39,1.27021557]
[1755390830237,3.97099695,188.44,188.39,1.27021557]
[1755390830439,1.27021557,188.46,188.39,1.27021557]
[1755390830635,3.97167418,188.45,188.36,47.3053]
[1755390830840,3.97167418,188.44,188.39,1.27021557]
[1755390831142,1.27021557,188.46,188.37,5.3051]
[1755390831336,3.97164438,188.45,188.39,1.27021557]
[1755390831536,3.97164438,188.44,188.39,1.27021557]
[1755390831737,1.27021557,188.46,188.39,1.27021557]
[1755390831943,5.92054089,188.51,188.39,1.27021557]
[1755390831944,3.97163514,188.45,188.39,1.27021557]
[1755390832145,3.97163514,188.44,188.39,1.27021557]
[1755390832441,1.27021557,188.47,188.39,1.27021557]
[1755390832744,8.59813648,188.46,188.39,1.27021557]
[1755390832931,3.97166466,188.45,188.39,1.27021557]
[1755390833138,3.97166466,188.44,188.39,1.27021557]
[1755390833336,1.27021557,188.47,188.39,1.27021557]
[1755390833532,8.59831725,188.46,188.39,1.27021557]
[1755390833736,3.97174813,188.45,188.39,1.27021557]
[1755390833943,3.97174813,188.44,188.39,1.27021557]
[1755390834144,1.27021557,188.47,188.39,1.27021557]
[1755390834346,8.59860042,188.46,188.39,1.27021557]
[1755390834641,3.97203599,188.45,188.39,1.27021557]
[1755390834841,3.97203599,188.44,188.39,1.27021557]
[1755390835044,1.27021557,188.47,188.39,1.27021557]
[1755390835245,8.59861606,188.46,188.39,1.27021557]
[1755390835544,3.97188619,188.45,188.39,1.27021557]
[1755390835743,3.97188619,188.44,188.39,1.27021557]
[1755390835943,1.27021557,188.47,188.39,1.27021557]
[1755390836143,8.5990561,188.46,188.39,1.27021557]
[1755390836346,3.97208946,188.45,188.39,1.27021557]
[1755390836543,3.97208946,188.44,188.39,1.27021557]
[1755390836763,1.27021557,188.47,188.39,1.27021557]
[1755390836943,8.59891433,188.46,188.39,1.27021557]
[1755390837147,3.97202398,188.45,188.39,1.27021557]
[1755390837442,3.97202398,188.44,188.39,1.27021557]
[1755390837644,1.27021557,188.47,188.39,1.27021557]
[1755390837840,8.55867871,188.46,188.39,1.27021557]
[1755390838138,3.97197099,188.45,188.39,1.27021557]
[1755390838339,3.97197099,188.44,188.39,1.27021557]
[1755390838540,1.27021557,188.47,188.39,1.27021557]
[1755390838839,8.55905088,188.46,188.39,1.27021557]
[1755390839039,3.97214371,188.45,188.39,1.27021557]
[1755390839242,3.97214371,188.44,188.39,1.27021557]
[1755390839444,1.27021557,188.47,188.39,1.27021557]
[1755390839641,8.55918461,188.46,188.39,1.27021557]
[1755390839843,3.97236429,188.45,188.39,1.27021557]
[1755390840044,3.97236429,188.44,188.39,1.27021557]
[1755390840244,1.27021557,188.47,188.39,1.27021557]
[1755390840546,8.56002179,188.46,188.39,1.27021557]
[1755390840745,3.97259427,188.45,188.39,1.27021557]
[1755390840941,3.97259427,188.44,188.39,1.27021557]
[1755390841245,1.27021557,188.47,188.39,1.27021557]
[1755390841446,8.56062145,188.46,188.39,1.27021557]
[1755390841652,3.97287259,188.45,188.39,1.27021557]
[1755390841848,3.97287259,188.44,188.39,1.27021557]
[1755390842049,1.27021557,188.47,188.39,1.27021557]
[1755390842242,8.56049044,188.46,188.39,1.27021557]
[1755390842455,3.97281246,188.45,188.39,1.27021557]
[1755390842645,3.97281246,188.44,188.39,1.27021557]
[1755390842841,1.27021557,188.47,188.39,1.27021557]
[1755390843050,8.56106011,188.46,188.39,1.27021557]
[1755390843346,3.97307621,188.45,188.39,1.27021557]
[1755390843549,3.97307621,188.44,188.39,1.27021557]
[1755390843748,1.27021557,188.47,188.39,1.27021557]
[1755390843952,8.56175705,188.46,188.39,1.27021557]
[1755390844151,3.9733988,188.45,188.39,1.27021557]
[1755390844450,3.9733988,188.44,188.39,1.27021557]
[1755390844651,1.27021557,188.47,188.39,1.27021557]
[1755390844850,8.56206344,188.46,188.39,1.27021557]
[1755390845052,3.97346943,188.45,188.39,1.27021557]
[1755390845248,3.97346943,188.44,188.39,1.27021557]
[1755390845448,1.27021557,188.47,188.39,1.27021557]
[1755390845747,8.56228099,188.46,188.39,1.27021557]
[1755390845948,3.97357039,188.45,188.39,1.27021557]
[1755390846152,3.97357039,188.44,188.39,1.27021557]
[1755390846454,1.27021557,188.47,188.39,1.27021557]
[1755390846655,8.56256402,188.46,188.39,1.27021557]
[1755390846954,3.97370174,188.45,188.39,1.27021557]
[1755390847154,3.97370174,188.44,188.39,1.27021557]
[1755390847356,3.97370174,188.43,188.39,1.27021557]
[1755390847555,1.27021557,188.47,188.39,1.27021557]
[1755390847748,8.56291648,188.46,188.39,1.27021557]
[1755390847954,3.9738653,188.45,188.39,1.27021557]
[1755390848151,3.9738653,188.44,188.39,1.27021557]
[1755390848353,3.9738653,188.43,188.39,1.27021557]
[1755390848656,1.27021557,188.47,188.39,1.27021557]
[1755390848855,8.56334345,188.46,188.39,1.27021557]
[1755390849055,3.97406344,188.45,188.39,1.27021557]
[1755390849354,3.97406344,188.44,188.39,1.27021557]
[1755390849556,3.97406344,188.43,188.39,1.27021557]
[1755390849754,1.27021557,188.47,188.39,1.27021557]
[1755390849956,8.56385208,188.46,188.39,1.27021557]
[1755390850155,3.97429948,188.45,188.39,1.27021557]
[1755390850455,3.97429948,188.44,188.39,1.27021557]
[1755390850754,3.97429948,188.43,188.39,1.27021557]
[1755390850957,1.27021557,188.47,188.39,1.27021557]
[1755390851155,8.56432578,188.46,188.39,1.27021557]
[1755390851358,3.97451931,188.45,188.39,1.27021557]
[1755390851654,3.97451931,188.44,188.39,1.27021557]
[1755390851854,3.97451931,188.43,188.39,1.27021557]
[1755390852055,1.27021557,188.47,188.39,1.27021557]
[1755390852354,8.56478258,188.46,188.39,1.27021557]
[1755390852555,3.9747313,188.45,188.39,1.27021557]
[1755390852756,3.9747313,188.44,188.39,1.27021557]
[1755390852955,3.9747313,188.43,188.39,1.27021557]
[1755390853154,1.27021557,188.47,188.39,1.27021557]
[1755390853354,8.56438992,188.46,188.39,1.27021557]
[1755390853556,3.97440616,188.45,188.39,1.27021557]
[1755390853754,3.97440616,188.44,188.39,1.27021557]
[1755390854052,3.97440616,188.43,188.39,1.27021557]
[1755390854251,1.27021557,188.47,188.39,1.27021557]
[1755390854452,8.56568106,188.46,188.39,1.27021557]
[1755390854649,8.56568106,188.45,188.39,1.27021557]
[1755390854847,3.97500524,188.44,188.39,1.27021557]
[1755390855056,3.97500524,188.43,188.39,1.27021557]
[1755390855251,1.27021557,188.47,188.39,1.27021557]
[1755390855452,8.56648145,188.46,188.39,1.27021557]
[1755390855755,8.56648145,188.45,188.39,1.27021557]
[1755390856054,3.9753837,188.44,188.39,1.27021557]
[1755390856255,3.9753837,188.43,188.39,1.27021557]
[1755390856557,1.27021557,188.47,188.39,1.27021557]
[1755390856756,8.56676522,188.46,188.39,1.27021557]
[1755390856950,8.56676522,188.45,188.39,1.27021557]
[1755390857156,1.27021557,188.5,188.41,1.27021557]
[1755390857355,8.56795655,188.49,188.41,1.27021557]
[1755390857557,8.56795655,188.48,188.43,1.27021557]
[1755390857857,3.97604636,188.47,188.43,1.27021557]
[1755390858054,3.97604636,188.46,188.43,1.27021557]
[1755390858255,3.97604636,188.45,188.43,1.27021557]
[1755390858453,1.27021557,188.5,188.43,1.27021557]
[1755390858657,8.56273412,188.49,188.43,1.27021557]
[1755390858861,8.56273412,188.48,188.43,1.27021557]
[1755390859050,3.97121223,188.47,188.43,1.27021557]
[1755390859250,0.92353011,188.52,188.45,1.27021557]
[1755390859455,8.56278659,188.51,188.45,1.27021557]
[1755390859757,3.9707861,188.5,188.45,1.27021557]
[1755390860056,3.9707861,188.49,188.45,1.27021557]
[1755390860251,3.9707861,188.48,188.45,1.27021557]
[1755390860456,0.92353011,188.52,188.45,1.27021557]
[1755390860656,3.96984603,188.51,188.45,1.27021557]
[1755390860856,3.96984603,188.5,188.45,1.27021557]
[1755390861057,3.96984603,188.49,188.45,1.27021557]
[1755390861260,3.96984603,188.48,188.45,1.27021557]
[1755390861460,0.92353011,188.52,188.45,1.27021557]
[1755390861659,3.96903535,188.51,188.45,1.27021557]
[1755390861860,3.96903535,188.5,188.45,1.27021557]
[1755390862061,3.96903535,188.49,188.45,1.27021557]
[1755390862261,3.96903535,188.48,188.45,1.27021557]
[1755390862562,0.92353011,188.52,188.45,1.27021557]
[1755390862763,3.96832258,188.51,188.45,1.27021557]
[1755390862970,3.96832258,188.5,188.45,1.27021557]
[1755390863157,0.92353011,188.52,188.45,1.27021557]
[1755390863158,3.96832258,188.49,188.45,1.27021557]
[1755390863460,3.96832258,188.48,188.45,1.27021557]
[1755390863661,0.92353011,188.52,188.45,1.27021557]
[1755390863859,3.96764427,188.51,188.45,1.27021557]
[1755390864060,3.96764427,188.5,188.45,1.27021557]
[1755390864361,3.96764427,188.49,188.45,1.27021557]
[1755390864660,0.92353011,188.52,188.47,1.27021557]
[1755390864861,3.96720971,188.51,188.47,1.27021557]
[1755390865061,3.96720971,188.5,188.47,1.27021557]
[1755390865263,3.96720971,188.49,188.47,1.27021557]
[1755390865462,0.92353011,188.52,188.47,1.27021557]
[1755390865761,3.96647876,188.51,188.47,1.27021557]
[1755390865960,3.96647876,188.5,188.47,1.27021557]
[1755390866161,3.96647876,188.49,188.47,1.27021557]
[1755390866361,0.92353011,188.52,188.47,1.27021557]
[1755390866666,3.96581787,188.51,188.47,1.27021557]
[1755390866861,3.96581787,188.5,188.47,1.27021557]
[1755390867159,3.96581787,188.49,188.46,1.27021557]
[1755390867358,0.92353011,188.52,188.46,1.27021557]
[1755390867558,3.96499206,188.51,188.46,1.27021557]
[1755390867759,3.96499206,188.5,188.46,1.27021557]
[1755390867970,3.96499206,188.49,188.46,1.27021557]
[1755390868164,0.92353011,188.52,188.46,1.27021557]
[1755390868364,3.96485796,188.51,188.46,1.27021557]
[1755390868564,3.96485796,188.5,188.46,1.27021557]
[1755390868765,3.96485796,188.49,188.46,1.27021557]
[1755390868964,0.92353011,188.52,188.46,1.27021557]
[1755390869165,3.96444764,188.51,188.46,1.27021557]
[1755390869468,3.96444764,188.5,188.46,1.27021557]
[1755390869670,2.97,188.49,188.47,3.11]
[1755390871473,3.96256426,188.48,188.44,4.38021557]
[1755390871675,2.97,188.49,188.44,4.38021557]
[1755390871869,3.96255746,188.48,188.44,1.27021557]
[1755390872065,2.97,188.47,188.45,3.11]
[1755390874275,2.97,188.51,188.45,3.11]
[1755390874572,0.92353011,188.52,188.45,3.11]
[1755390874573,2.97,188.49,188.45,3.11]
[1755390878175,2.97,188.49,188.44,1.27021557]
[1755390878377,2.97,188.49,188.45,3.11]
[1755390880476,2.97,188.49,188.46,3.11]
[1755390889289,3.95954274,188.48,188.46,3.11]
[1755390889488,2.97,188.49,188.46,3.11]
[1755390889689,2.89,188.47,188.46,3.11]
[1755390898497,2.89,188.51,188.46,3.11]
[1755390898698,2.89,188.49,188.45,2.93]
[1755390898901,3.96463822,188.48,188.45,2.93]
[1755390899104,2.89,188.49,188.45,2.93]
[1755390899293,3.96463822,188.48,188.45,2.93]
[1755390899494,2.89,188.49,188.46,1.27021557]
[1755390899800,3.96594707,188.48,188.46,1.27021557]
[1755390899996,2.89,188.49,188.46,1.27021557]
[1755390900296,2.89,188.49,188.45,2.93]
[1755390900297,2.89,188.49,188.48,1.27021557]
[1755390900594,6.85692097,188.49,188.45,2.93]
[1755390900797,8.68036005,188.48,188.45,2.93]
[1755390900998,3.96692097,188.47,188.45,2.93]
[1755390901190,2.89,188.49,188.45,2.93]
[1755390901396,3.96841698,188.48,188.45,2.93]
[1755390901593,3.96841698,188.47,188.45,2.93]
[1755390901894,3.96841698,188.46,188.45,2.93]
[1755390902097,3.96841698,188.48,188.45,2.93]
[1755390902299,3.96841698,188.47,188.45,2.93]
[1755390902495,3.96841698,188.46,188.45,2.93]
[1755390902895,3.96841698,188.48,188.44,1.27021557]
[1755390903101,3.96841698,188.47,188.44,1.27021557]
[1755390903298,3.96841698,188.46,188.44,1.27021557]
[1755390903495,0.9234811,188.53,188.44,1.27021557]
[1755390903496,6.84402199,188.53,188.44,1.27021557]
[1755390903704,8.43707835,188.52,188.48,1.27021557]
[1755390903908,0.9234811,188.53,188.48,1.27021557]
[1755390903909,8.43707835,188.51,188.48,1.27021557]
[1755390904097,3.97105353,188.5,188.48,1.27021557]
[1755390904317,3.97105353,188.49,188.48,1.27021557]
[1755390904705,3.97105353,188.55,188.48,1.27021557]
[1755390904901,8.43884676,188.54,188.52,1.27021557]
[1755390905103,3.97169805,188.53,188.52,1.27021557]
[1755390905598,0.92321161,188.59,188.52,1.27021557]
[1755390905909,4.46609084,188.58,188.53,1.27021557]
[1755390906107,0.92315038,188.6,188.53,1.27021557]
[1755390906407,1.27021557,188.57,188.49,1.27021557]
[1755390906599,1.27021557,188.57,188.42,129.16]
[1755390906600,4.46249247,188.56,188.42,129.16]
[1755390906796,4.46249247,188.55,188.5,1.27021557]
[1755390907001,1.27021557,188.57,188.5,1.27021557]
[1755390907201,4.46085818,188.56,188.42,129.16]
[1755390907398,1.27021557,188.58,188.51,1.27021557]
[1755390907599,4.46074659,188.57,188.51,1.27021557]
[1755390907808,1.27021557,188.58,188.51,1.27021557]
[1755390908106,4.45938101,188.57,188.51,1.27021557]
[1755390908307,4.45938101,188.56,188.51,1.27021557]
[1755390908498,1.27021557,188.58,188.51,1.27021557]
[1755390908804,1.27021557,188.56,188.49,1.27021557]
[1755390909008,4.45903505,188.55,188.49,1.27021557]
[1755390909207,4.45903505,188.54,188.49,1.27021557]
[1755390909508,1.27021557,188.56,188.49,1.27021557]
[1755390909703,4.45839734,188.55,188.49,1.27021557]
[1755390910007,4.45839804,188.54,188.49,1.27021557]
[1755390910210,1.27021557,188.54,188.47,1.27021557]
[1755390910410,4.45797575,188.53,188.47,1.27021557]
[1755390910608,1.27021557,188.54,188.47,1.27021557]
[1755390910808,4.45796928,188.53,188.47,1.27021557]
[1755390911108,1.27021557,188.54,188.47,1.27021557]
[1755390911305,4.45805959,188.53,188.37,178.65139149]
[1755390911498,1.27021557,188.54,188.46,1.27021557]
[1755390911704,4.45791238,188.53,188.46,1.27021557]
[1755390911903,1.27021557,188.54,188.46,1.27021557]
[1755390912108,1.27021557,188.52,188.46,1.27021557]
[1755390912613,1.27021557,188.5,188.44,1.27021557]
[1755390912914,1.27021557,188.5,188.42,1.27021557]
[1755390913111,1.27021557,188.5,188.44,1.27021557]
[1755390913517,5.92054089,188.54,188.44,1.27021557]
[1755390913714,1.27021557,188.52,188.44,1.27021557]
[1755390913908,4.45650529,188.51,188.44,1.27021557]
[1755390914110,1.27021557,188.52,188.44,1.27021557]
[1755390914410,4.45662079,188.51,188.44,1.27021557]
[1755390914611,7.90648286,188.55,188.43,5.3032]
[1755390914912,4.45647822,188.54,188.43,5.3032]
[1755390915112,4.45647822,188.53,188.43,5.3032]
[1755390915306,4.45647822,188.52,188.43,5.3032]
[1755390915505,4.45647822,188.51,188.43,5.3032]
[1755390915717,7.90648286,188.55,188.42,7.28964197]
[1755390915910,4.45645005,188.54,188.42,7.28964197]
[1755390916110,4.45645005,188.53,188.42,7.28964197]
[1755390916312,4.45645005,188.52,188.42,7.28964197]
[1755390916511,4.45645005,188.51,188.42,7.28964197]
[1755390916713,1.98594197,188.54,188.42,7.28964197]
[1755390917006,4.45642517,188.53,188.42,7.28964197]
[1755390917210,4.45642517,188.52,188.42,7.28964197]
[1755390917406,4.45642517,188.51,188.42,7.28964197]
[1755390917711,3.94520565,188.5,188.42,7.28964197]
[1755390917913,3.94520565,188.49,188.42,7.28964197]
[1755390918113,3.94520565,188.48,188.42,7.28964197]
[1755390918313,1.98594197,188.54,188.42,7.28964197]
[1755390918512,8.39699465,188.53,188.42,7.28964197]
[1755390918714,8.39699465,188.52,188.42,7.28964197]
[1755390919013,1.98594197,188.54,188.42,7.28964197]
[1755390919014,8.39699465,188.51,188.42,1.98594197]
[1755390919216,3.94033728,188.5,188.42,1.98594197]
[1755390919412,3.94033728,188.49,188.42,1.98594197]
[1755390919716,1.98594197,188.54,188.42,1.98594197]
[1755390919918,8.39696587,188.53,188.42,43.98594197]
[1755390920216,6.84369127,188.6,188.49,1.98594197]
[1755390920422,8.39899013,188.59,188.49,1.98594197]
[1755390920611,8.39899013,188.58,188.49,1.98594197]
[1755390920812,3.9410555,188.57,188.52,1.98594197]
[1755390921111,3.9410555,188.56,188.52,1.98594197]
[1755390921316,362.34054089,188.62,188.52,1.98594197]
[1755390921517,8.39618215,188.61,188.52,7.28684197]
[1755390921712,8.39618215,188.6,188.52,7.28684197]
[1755390921907,8.39618215,188.59,188.52,7.28684197]
[1755390922111,3.93972114,188.58,188.52,7.28684197]
[1755390922415,3.93972114,188.57,188.52,7.28684197]
[1755390922716,0.92300347,188.63,188.53,5.3006]
[1755390922914,8.39392345,188.62,188.53,5.3006]
[1755390923109,8.39392345,188.61,188.53,5.3006]
[1755390923313,0.92300347,188.63,188.53,5.3006]
[1755390923314,3.93864903,188.6,188.53,5.3006]
[1755390923607,3.93864903,188.59,188.53,5.3006]
[1755390923813,1.98594197,188.65,188.55,1.98594197]
[1755390923814,3.93864903,188.58,188.55,1.98594197]
[1755390924014,5.92054089,188.65,188.55,1.98594197]
[1755390924217,8.38906102,188.64,188.55,1.98594197]
[1755390924418,8.38906102,188.63,188.55,1.98594197]
[1755390924717,8.38906102,188.62,188.55,1.98594197]
[1755390924919,3.93710355,188.61,188.55,1.98594197]
[1755390925217,3.93710355,188.6,188.55,7.28594197]
[1755390925416,0.92294228,188.66,188.55,7.28594197]
[1755390925617,8.38421529,188.65,188.55,7.28594197]
[1755390925818,8.38421529,188.64,188.55,7.28594197]
[1755390926019,8.38421529,188.63,188.55,7.28594197]
[1755390926217,3.93404988,188.62,188.55,7.28594197]
[1755390926417,3.93404988,188.61,188.55,7.28594197]
[1755390926718,3.93404988,188.6,188.55,7.28594197]
[1755390926919,0.92294228,188.66,188.55,7.28594197]
[1755390927121,8.38063694,188.65,188.55,7.28594197]
[1755390927420,8.37932131,188.64,188.55,7.28594197]
[1755390927614,3.9323658,188.63,188.55,7.28594197]
[1755390927920,3.9323658,188.62,188.55,7.28594197]
[1755390928114,3.9323658,188.61,188.55,7.28594197]
[1755390928417,0.92294228,188.66,188.55,7.28594197]
[1755390928618,8.27434501,188.65,188.55,7.28594197]
[1755390928821,3.92975698,188.64,188.55,7.28594197]
[1755390929019,3.92975698,188.63,188.55,7.28594197]
[1755390929319,3.92975698,188.62,188.55,7.28594197]
[1755390929619,0.92294228,188.66,188.55,1.98594197]
[1755390929819,3.92865991,188.65,188.55,1.98594197]
[1755390930015,3.92865991,188.64,188.55,1.98594197]
[1755390930319,3.92865991,188.63,188.55,1.98594197]
[1755390930519,0.92294228,188.66,188.55,1.98594197]
[1755390930723,3.9284815,188.65,188.58,7.28514197]
[1755390930931,129.32,188.71,188.58,7.28514197]
[1755390931144,0.92273426,188.69,188.58,7.28514197]
[1755390931422,3.92878822,188.68,188.59,5.299]
[1755390932324,3.92878822,188.68,188.61,1.98594197]
[1755390932525,3.92878822,188.67,188.61,1.98594197]
[1755390932729,130.24263641,188.71,188.61,1.98594197]
[1755390932915,8.26500514,188.7,188.61,1.98594197]
[1755390933120,3.92530752,188.69,188.61,1.98594197]
[1755390933428,3.92530752,188.68,188.61,1.98594197]
[1755390933625,3.92530752,188.67,188.61,1.98594197]
[1755390933826,130.24263641,188.71,188.61,1.98594197]
[1755390934026,3.92390458,188.7,188.61,1.98594197]
[1755390934238,3.92390458,188.69,188.61,1.98594197]
[1755390934418,130.24263641,188.71,188.61,1.98594197]
[1755390934621,3.92206412,188.7,188.61,1.98594197]
[1755390934825,3.92206412,188.69,188.61,1.98594197]
[1755390935024,130.24263641,188.71,188.61,1.98594197]
[1755390935220,3.92206412,188.7,188.61,1.98594197]
[1755390935526,3.92206412,188.69,188.61,1.98594197]
[1755390935728,0.92263641,188.71,188.61,7.28424197]
[1755390936023,3.92048976,188.7,188.61,7.28424197]
[1755390936227,0.92263641,188.71,188.61,7.28424197]
[1755390936622,0.92263641,188.71,188.61,1.98594197]
[1755390937127,0.92263641,188.71,188.61,7.28424197]
[1755390942028,0.92263641,188.71,188.62,5.298]
[1755390942431,0.92263641,188.71,188.61,1.98594197]
[1755390942627,0.92263641,188.71,188.62,5.2981]
[1755390942828,113.05360483,188.76,188.64,1.98594197]
[1755390943029,0.92242853,188.74,188.64,1.98594197]
[1755390943230,0.92242853,188.74,188.54,1.98594197]
[1755390943231,0.92242853,188.74,188.67,1.98594197]
[1755390943430,113.05360483,188.76,188.67,1.98594197]
[1755390943627,113.97592335,188.76,188.67,1.98594197]
[1755390945027,0.92231852,188.76,188.67,1.98594197]
[1755390945231,5.92054089,188.87,188.75,1.98594197]
[1755390945434,0.92207414,188.82,188.75,1.98594197]
[1755390945828,133.58594197,188.88,188.75,1.98594197]
[1755390946032,0.92190315,188.83,188.75,1.98594197]
[1755390946537,133.58594197,188.88,188.75,1.98594197]
[1755390946727,0.9218543,188.86,188.75,1.98594197]
[1755390947036,131.6,188.88,188.75,1.98594197]
[1755390947235,3.90519736,188.87,188.63,131.74]
[1755390947430,3.90176663,188.86,188.77,1.98594197]
[1755390947631,0.92184209,188.87,188.77,1.98594197]
[1755390947832,3.89213293,188.86,188.77,1.98594197]
[1755390948133,0.92184209,188.87,188.77,1.98594197]
[1755390948334,3.89227264,188.86,188.77,1.98594197]
[1755390948535,0.92184209,188.87,188.77,1.98594197]
[1755390948829,3.88974195,188.86,188.77,1.98594197]
[1755390949037,0.92184209,188.87,188.77,1.98594197]
[1755390949829,0.92184209,188.87,188.76,5.294]
[1755390950136,0.92184209,188.87,188.79,1.98594197]
[1755390956450,133.68594197,188.93,188.79,1.98594197]
[1755390956749,0.92162237,188.91,188.79,7.27924197]
[1755390956949,3.87337042,188.9,188.79,7.27924197]
[1755390957149,3.87337042,188.9,188.79,1.98594197]
[1755390957452,3.87337042,188.9,188.79,7.27924197]
[1755390957946,0.92162237,188.91,188.8,5.2931]
[1755390958148,0.92162237,188.91,188.79,1.98594197]
[1755390958445,356.14,188.94,188.84,5.2919]
[1755390958654,3.87296931,188.93,188.85,1.98594197]
[1755390958949,131.64,188.96,188.85,1.98594197]
[1755390959145,3.87308957,188.95,188.85,1.98594197]
[1755390959340,0.92152475,188.92,188.79,1.98594197]
[1755390960346,3.87407325,188.91,188.79,1.98594197]
[1755390960550,0.92152475,188.92,188.79,7.27914197]
[1755390960747,3.87407385,188.91,188.79,7.27914197]
[1755390960948,0.92152475,188.92,188.79,7.27914197]
[1755390961158,3.87407385,188.91,188.79,7.27914197]
[1755390961452,0.92152475,188.92,188.79,7.27914197]
[1755390961654,3.87467822,188.91,188.79,7.27914197]
[1755390961961,0.92152475,188.92,188.79,1.98594197]
[1755390962155,3.87467822,188.91,188.79,1.98594197]
[1755390962358,0.92152475,188.92,188.82,1.98594197]
[1755390962548,131.64,188.96,188.83,5.2922]
[1755390962750,3.87602426,188.95,188.83,5.2922]
[1755390962954,2.81,188.93,188.84,2.93]
[1755390963257,2.81,188.91,188.84,2.93]
[1755390964257,3.87845531,188.9,188.84,2.93]
[1755390964553,2.81,188.89,188.84,2.93]
[1755390964858,2.81,188.89,188.83,2.93]
[1755390965358,2.81,188.89,188.81,4.91594197]
[1755390965657,2.81,188.87,188.81,2.93]
[1755390966659,2.81,188.87,188.82,2.93]
[1755390966861,8.82793441,188.95,188.85,2.93]
[1755390966862,2.81,188.88,188.85,2.93]
[1755390967061,2.81,188.9,188.85,2.93]
[1755390967261,2.81,188.89,188.85,2.93]
[1755390967662,0.92145155,188.95,188.85,2.93]
[1755390967863,2.81,188.88,188.85,2.93]
[1755390969463,2.81,188.89,188.85,2.93]
[1755390969663,2.81,188.88,188.85,2.93]
[1755390970865,2.81,188.94,188.85,2.93]
[1755390971068,2.81,188.92,188.85,2.93]
[1755390971261,2.81,188.9,188.85,2.93]
[1755390971662,2.81,188.9,188.84,1.98594197]
[1755390971964,2.81,188.9,188.84,4.91594197]
[1755390972460,2.81,188.9,188.85,2.93]
[1755390974959,2.81,188.9,188.86,2.93]
[1755390975160,2.81,188.94,188.86,2.93]
[1755390975363,2.81,188.92,188.86,2.93]
[1755390975561,0.92145155,188.95,188.86,2.93]
[1755390975562,3.89331807,188.91,188.86,2.93]
[1755390975762,3.89331807,188.9,188.85,5.2917]
[1755390976061,2.81,188.88,188.87,2.93]
[1755390976261,2.81,188.94,188.87,2.93]
[1755390976464,2.81,188.92,188.87,2.93]
[1755390976766,2.81,188.9,188.79,2.93]
[1755390977065,3.89416224,188.89,188.83,4.91594197]
[1755390977271,2.81,188.88,188.84,2.94]
[1755390978564,2.9,188.94,188.84,2.94]
[1755390978863,2.9,188.92,188.84,2.94]
[1755390979070,2.9,188.9,188.86,2.94]
[1755390979368,2.9,188.88,188.87,2.94]
[1755390980170,2.9,188.94,188.88,2.94]
[1755390980363,2.9,188.92,188.87,2.94]
[1755390980662,2.9,188.89,188.88,2.94]
[1755390980866,2.9,188.89,188.76,1.98594197]
[1755390980867,6.75890904,188.89,188.83,2.94]
[1755390981170,2.9,188.89,188.83,2.94]
[1755390981765,2.9,188.89,188.86,2.94]
[1755390981966,2.9,188.91,188.86,2.94]
[1755390982269,2.9,188.9,188.87,2.94]
[1755390982670,2.9,188.9,188.87,8.2311]
[1755390982971,2.9,188.94,188.88,2.94]
[1755390983164,3.86257228,188.93,188.88,2.94]
[1755390983468,3.86257228,188.92,188.89,2.94]
[1755390983664,2.9,188.9,188.89,2.94]
[1755390984170,2.9,188.9,188.87,2.94]
[1755390984471,2.9,188.9,188.85,4.92594197]
[1755390985068,2.9,188.9,188.86,2.94]
[1755390985371,2.9,188.9,188.87,2.94]
[1755390986265,3.87339512,188.89,188.87,2.94]